fUSD/lending_fUSD_20250214
["ID","MTS","AMOUNT","RATE_DAILY","PERIOD"]
[353032892,1739500245282,-500.0,0.00013698,2]
[353032893,1739500245292,-527.71714899,0.00013698,2]
[353032894,1739500245302,-513.60940361,0.00013698,2]
[353032895,1739500245311,-517.21210976,0.00013698,2]
[353032896,1739500245321,-521.37717432,0.00013698,2]
[353032897,1739500245330,-500.0,0.00013698,2]
[353032898,1739500245339,-520.31894428,0.00013698,2]
[353032899,1739500245349,-500.0,0.00013698,2]
[353032900,1739500245359,-500.0,0.00013698,2]
[353032901,1739500245369,-522.59818873,0.00013698,2]
[353032902,1739500245378,-500.0,0.00013698,2]
[353032903,1739500245387,-500.0,0.00013698,2]
[353032904,1739500245397,-531.91633916,0.00013698,2]
[353032905,1739500245408,-538.85696515,0.00013698,2]
[353032906,1739500245418,-500.0,0.00013698,2]
[353032907,1739500245428,-527.57904023,0.00013698,2]
[353032908,1739500245438,-500.0,0.00013698,2]
[353032909,1739500245448,-500.0,0.00013698,2]
[353032910,1739500245456,-505.0198561,0.00013698,2]
[353032911,1739500245465,-500.0,0.00013698,2]
[353032912,1739500245474,-512.49999263,0.00013698,2]
[353032913,1739500245483,-322.70197786,0.00013698,2]
[353032914,1739500245492,-500.0,0.00013698,2]
[353032915,1739500245500,-500.0,0.00013698,2]
[353032916,1739500245510,-500.0,0.00013698,2]
[353032917,1739500245519,-500.0,0.00013698,2]
[353032918,1739500245527,-500.0,0.00013698,2]
[353032919,1739500245537,-500.0,0.00013698,2]
[353032920,1739500245546,-514.6666894,0.00013698,2]
[353032921,1739500245557,-520.34795972,0.00013698,2]
[353032922,1739500245567,-526.7381884,0.00013698,2]
[353032923,1739500245576,-500.0,0.00013698,2]
[353032924,1739500245585,-516.28754331,0.00013698,2]
[353032925,1739500245594,-539.4129907,0.00013698,2]
[353032926,1739500245604,-500.0,0.00013698,2]
[353032927,1739500245613,-500.0,0.00013698,2]
[353032928,1739500245622,-500.0,0.00013698,2]
[353032929,1739500245632,-523.35817186,0.00013698,2]
[353032930,1739500245641,-545.60653021,0.00013698,2]
[353032931,1739500245651,-552.42442062,0.00013698,2]
[353032933,1739500245660,-500.0,0.00013698,2]
[353032934,1739500245669,-500.0,0.00013698,2]
[353032935,1739500245679,-500.0,0.00013698,2]
[353032936,1739500245688,-510.57319805,0.00013698,2]
[353032937,1739500245698,-202.90008244,0.00013698,2]
[353032938,1739500245707,-500.0,0.00013698,2]
[353032940,1739500245718,-518.72297737,0.00013698,2]
[353032942,1739500245728,-500.0,0.00013698,2]
[353032944,1739500245737,-507.71002155,0.00013698,2]
[353032945,1739500245747,-646.48207544,0.00013698,2]
[353032946,1739500245757,-500.0,0.00013698,2]
[353032948,1739500245767,-500.0,0.00013698,2]
[353032949,1739500245776,-500.0,0.00013698,2]
[353032950,1739500245785,-500.0,0.00013698,2]
[353032951,1739500245796,-570.55788624,0.00013698,2]
[353032952,1739500245807,-178.226235,0.00013698,2]
[353032954,1739500245820,-500.0,0.00013698,2]
[353032955,1739500245834,-509.79105561,0.00013698,2]
[353032956,1739500245847,-333.73989348,0.00013698,2]
[353032957,1739500245860,-500.0,0.00013698,2]
[353032958,1739500245872,-500.0,0.00013698,2]
[353032959,1739500245883,-512.87368554,0.00013698,2]
[353032960,1739500245894,-508.11188728,0.00013698,2]
[353032961,1739500245909,-500.0,0.00013698,2]
[353032962,1739500245921,-516.44233349,0.00013698,2]
[353032963,1739500245933,-500.0,0.00013698,2]
[353032964,1739500245945,-500.0,0.00013698,2]
[353032965,1739500245956,-523.05088541,0.00013698,2]
[353032966,1739500245968,-500.0,0.00013698,2]
[353032967,1739500245980,-516.34178052,0.00013698,2]
[353032968,1739500245992,-500.0,0.00013698,2]
[353032969,1739500246005,-638.2,0.00013698,2]
[353032970,1739500246017,-500.0,0.00013698,2]
[353032971,1739500246029,-519.84,0.00013698,2]
[353032972,1739500246039,-500.0,0.00013698,2]
[353032973,1739500246050,-500.0,0.00013698,2]
[353032974,1739500246060,-500.0,0.00013698,2]
[353032975,1739500246070,-516.94077215,0.00013698,2]
[353032976,1739500246082,-615.56655112,0.00013698,2]
[353032977,1739500246095,-531.71658962,0.00013698,2]
[353032978,1739500246106,-500.0,0.00013698,2]
[353032979,1739500246117,-500.0,0.00013698,2]
[353032980,1739500246129,-512.52202796,0.00013698,2]
[353032981,1739500246141,-500.0,0.00013698,2]
[353032982,1739500246152,-500.0,0.00013698,2]
[353032983,1739500246165,-536.93418616,0.00013698,2]
[353032984,1739500246178,-500.0,0.00013698,2]
[353032985,1739500246191,-533.05758514,0.00013698,2]
[353032986,1739500246205,-500.0,0.00013698,2]
[353032987,1739500246216,-500.0,0.00013698,2]
[353032988,1739500246228,-537.14859549,0.00013698,2]
[353032989,1739500246240,-535.72652999,0.00013698,2]
[353032990,1739500246251,-500.0,0.00013698,2]
[353032991,1739500246263,-500.0,0.00013698,2]
[353032992,1739500246274,-500.0,0.00013698,2]
[353032993,1739500246286,-199.232077,0.00013698,2]
[353032994,1739500246297,-500.0,0.00013698,2]
[353032995,1739500246308,-199.232077,0.00013698,2]
[353032996,1739500246320,-199.232077,0.00013698,2]
[353032997,1739500246332,-199.232077,0.00013698,2]
[353032998,1739500246343,-541.77345347,0.00013698,2]
[353032999,1739500246354,-199.232077,0.00013698,2]
[353033000,1739500246366,-500.0,0.00013698,2]
[353033001,1739500246378,-199.232077,0.00013698,2]
[353033002,1739500246388,-291.84222559,0.00013698,2]
[353033003,1739500246399,-199.232077,0.00013698,2]
[353033004,1739500246409,-307.92993966,0.00013698,2]
[353033005,1739500246419,-199.232077,0.00013698,2]
[353033006,1739500246430,-500.0,0.00013698,2]
[353033007,1739500246442,-500.0,0.00013698,2]
[353033008,1739500246455,-500.0,0.00013698,2]
[353033009,1739500246469,-500.0,0.00013698,2]
[353033010,1739500246480,-362.91472161,0.00013698,2]
[353033011,1739500246492,-531.94567522,0.00013698,2]
[353033012,1739500246502,-500.0,0.00013698,2]
[353033013,1739500246513,-500.0,0.00013698,2]
[353033014,1739500246523,-500.0,0.00013698,2]
[353033015,1739500246534,-500.0,0.00013698,2]
[353033016,1739500246545,-522.22875106,0.00013698,2]
[353033017,1739500246556,-234.645239,0.00013698,2]
[353033018,1739500246569,-502.27119782,0.00013698,2]
[353033019,1739500246580,-500.0,0.00013698,2]
[353033020,1739500246592,-500.0,0.00013698,2]
[353033021,1739500246603,-500.0,0.00013698,2]
[353033022,1739500246613,-500.0,0.00013698,2]
[353033023,1739500246624,-500.0,0.00013698,2]
[353033024,1739500246636,-267.29599654,0.00013698,2]
[353033025,1739500246646,-500.0,0.00013698,2]
[353033026,1739500246657,-515.03206121,0.00013698,2]
[353033027,1739500246667,-500.0,0.00013698,2]
[353033028,1739500246678,-500.0,0.00013698,2]
[353033029,1739500246689,-417.70369532,0.00013698,2]
[353033030,1739500246700,-500.0,0.00013698,2]
[353033031,1739500246710,-500.0,0.00013698,2]
[353033032,1739500246721,-507.49030891,0.00013698,2]
[353033033,1739500246732,-500.0,0.00013698,2]
[353033034,1739500246743,-495.64873556,0.00013698,2]
[353033035,1739500246754,-846.07,0.00013698,2]
[353033036,1739500246765,-500.0,0.00013698,2]
[353033037,1739500246777,-500.0,0.00013698,2]
[353033038,1739500246787,-500.0,0.00013698,2]
[353033039,1739500246801,-500.0,0.00013698,2]
[353033040,1739500246813,-552.01092284,0.00013698,2]
[353033041,1739500246824,-155.32,0.00013699,2]
[353033042,1739500246834,-200.0,0.00013699,2]
[353033043,1739500246847,-284.78699645,0.00013699,2]
[353033044,1739500246859,-150.0,0.00013711,2]
[353033045,1739500246869,-150.0,0.00013726,2]
[353033046,1739500246881,-150.0,0.0001373,2]
[353033047,1739500246893,-150.0,0.00013749,2]
[353033048,1739500246904,-150.0,0.00013768,2]
[353033049,1739500246915,-150.0,0.00013768,2]
[353033050,1739500246926,-150.0,0.00013768,2]
[353033051,1739500246937,-500.0,0.00013779,2]
[353033052,1739500246949,-227.77230493,0.0001378,2]
[353033053,1739500246960,-533.08705769,0.0001378,2]
[353033054,1739500246972,-500.0,0.0001378,2]
[353033055,1739500246984,-417.41846303,0.0001378,2]
[353033056,1739500246996,-348.90433214,0.0001378,2]
[353033057,1739500247009,-518.68854677,0.0001378,2]
[353033058,1739500247020,-530.20893904,0.0001378,2]
[353033059,1739500247033,-521.66073203,0.0001378,2]
[353033060,1739500247044,-526.15073681,0.0001378,2]
[353033061,1739500247056,-517.5885359,0.0001378,2]
[353033062,1739500247067,-384.78473525,0.0001378,2]
[353033063,1739500247080,-531.74353562,0.0001378,2]
[353033064,1739500247092,-535.93911149,0.0001378,2]
[353033065,1739500247104,-544.20447022,0.0001378,2]
[353033066,1739500247116,-500.0,0.0001378,2]
[353033067,1739500247127,-266.34545856,0.0001378,2]
[353033068,1739500247139,-500.0,0.0001378,2]
[353033069,1739500247150,-500.0,0.0001378,2]
[353033070,1739500247163,-500.0,0.0001378,2]
[353033071,1739500247174,-500.0,0.0001378,2]
[353033072,1739500247184,-429.63569406,0.0001378,2]
[353033073,1739500247195,-500.0,0.0001378,2]
[353033074,1739500247205,-223.8650277,0.0001378,2]
[353033075,1739500247215,-306.59135659,0.0001378,2]
[353033076,1739500247227,-355.72491531,0.0001378,2]
[353033077,1739500247238,-383.38559346,0.0001378,2]
[353033078,1739500247250,-300.94967007,0.0001378,2]
[353033079,1739500247262,-500.0,0.0001378,2]
[353033080,1739500247272,-500.0,0.0001378,2]
[353033081,1739500247283,-500.0,0.0001378,2]
[353033082,1739500247293,-500.0,0.0001378,2]
[353033083,1739500247304,-500.0,0.0001378,2]
[353033084,1739500247315,-500.0,0.0001378,2]
[353033085,1739500247327,-336.82934932,0.0001378,2]
[353033086,1739500247338,-500.0,0.0001378,2]
[353033087,1739500247349,-606.35801394,0.0001378,2]
[353033088,1739500247361,-503.86092582,0.0001378,2]
[353033089,1739500247371,-583.96919214,0.0001378,2]
[353033090,1739500247382,-507.22883484,0.0001378,2]
[353033091,1739500247393,-500.0,0.0001378,2]
[353033092,1739500247404,-516.95443513,0.0001378,2]
[353033093,1739500247415,-1187.28,0.0001378,2]
[353033094,1739500247426,-637.5924622,0.0001378,2]
[353033095,1739500247438,-500.0,0.0001378,2]
[353033096,1739500247448,-500.0,0.0001378,7]
[353033097,1739500247460,-500.0,0.0001378,2]
[353033098,1739500247471,-538.60593429,0.0001378,2]
[353033099,1739500247483,-500.0,0.0001378,2]
[353033100,1739500247494,-500.0,0.0001378,2]
[353033101,1739500247696,-218.17398345,0.0001378,2]
[353033102,1739500247707,-500.0,0.0001378,2]
[353033103,1739500247716,-500.0,0.0001378,2]
[353033104,1739500247727,-587.00570713,0.0001378,2]
[353033105,1739500247736,-500.0,0.0001378,2]
[353033106,1739500247746,-500.0,0.0001378,2]
[353033107,1739500247756,-500.0,0.0001378,2]
[353033108,1739500247766,-500.0,0.0001378,2]
[353033109,1739500247776,-524.47048262,0.0001378,2]
[353033110,1739500247786,-624.79216731,0.0001378,2]
[353033111,1739500247801,-500.0,0.0001378,2]
[353033112,1739500247810,-500.0,0.0001378,2]
[353033113,1739500247821,-500.0,0.0001378,2]
[353033114,1739500247831,-500.0,0.0001378,2]
[353033115,1739500247843,-500.0,0.0001378,2]
[353033116,1739500247853,-500.0,0.0001378,2]
[353033117,1739500247863,-526.001082,0.0001378,2]
[353033118,1739500247875,-500.0,0.0001378,2]
[353033119,1739500247884,-500.0,0.0001378,2]
[353033120,1739500247893,-519.53724462,0.0001378,2]
[353033121,1739500247902,-500.0,0.0001378,2]
[353033122,1739500247911,-529.24595188,0.0001378,2]
[353033123,1739500247922,-537.84263765,0.0001378,2]
[353033124,1739500247931,-500.0,0.0001378,2]
[353033125,1739500247940,-530.27379801,0.0001378,2]
[353033126,1739500247950,-524.89443429,0.0001378,2]
[353033127,1739500247959,-429.45703026,0.0001378,2]
[353033128,1739500247969,-246.06752465,0.0001378,2]
[353033129,1739500247980,-616.88386848,0.0001378,2]
[353033130,1739500247989,-500.0,0.0001378,2]
[353033131,1739500247998,-500.0,0.0001378,2]
[353033132,1739500248008,-500.0,0.0001378,2]
[353033133,1739500248017,-500.0,0.0001378,2]
[353033134,1739500248027,-500.0,0.0001378,2]
[353033135,1739500248037,-500.0,0.0001378,2]
[353033136,1739500248046,-500.0,0.0001378,2]
[353033137,1739500248055,-520.97280211,0.0001378,2]
[353033138,1739500248064,-218.61613494,0.0001378,2]
[353033139,1739500248073,-550.55794719,0.0001378,2]
[353033140,1739500248083,-500.0,0.0001378,2]
[353033141,1739500248093,-500.0,0.0001378,2]
[353033142,1739500248103,-500.0,0.0001378,2]
[353033143,1739500248112,-539.22217418,0.0001378,2]
[353033144,1739500248122,-500.0,0.0001378,2]
[353033145,1739500248131,-500.0,0.0001378,2]
[353033146,1739500248140,-500.0,0.0001378,2]
[353033147,1739500248149,-500.0,0.0001378,2]
[353033148,1739500248159,-500.0,0.0001378,2]
[353033149,1739500248169,-500.0,0.0001378,2]
[353033150,1739500248178,-500.0,0.0001378,2]
[353033151,1739500248188,-500.0,0.0001378,2]
[353033152,1739500248198,-638.2,0.0001378,2]
[353033153,1739500248207,-500.0,0.0001378,2]
[353033154,1739500248216,-519.84,0.0001378,2]
[353033155,1739500248226,-540.54790823,0.0001378,2]
[353033156,1739500248235,-500.0,0.0001378,2]
[353033157,1739500248245,-500.0,0.0001378,2]
[353033158,1739500248255,-500.0,0.0001378,2]
[353033159,1739500248265,-500.0,0.0001378,2]
[353033160,1739500248275,-500.0,0.0001378,2]
[353033161,1739500248284,-531.3690504,0.0001378,2]
[353033162,1739500248293,-500.0,0.0001378,2]
[353033163,1739500248303,-500.0,0.0001378,2]
[353033164,1739500248313,-500.0,0.0001378,2]
[353033165,1739500248323,-500.0,0.0001378,2]
[353033166,1739500248333,-500.0,0.0001378,2]
[353033167,1739500248342,-500.0,0.0001378,2]
[353033168,1739500248350,-625.36778525,0.0001378,2]
[353033169,1739500248360,-199.232077,0.0001378,2]
[353033170,1739500248368,-540.5192228,0.0001378,2]
[353033171,1739500248377,-199.232077,0.0001378,2]
[353033172,1739500248387,-242.7586068,0.0001378,2]
[353033173,1739500248396,-500.0,0.0001378,2]
[353033174,1739500248405,-500.0,0.0001378,2]
[353033175,1739500248415,-500.0,0.0001378,2]
[353033176,1739500248425,-500.0,0.0001378,2]
[353033177,1739500248434,-500.0,0.0001378,2]
[353033178,1739500248443,-500.0,0.0001378,2]
[353033179,1739500248452,-500.0,0.0001378,2]
[353033180,1739500248461,-500.0,0.0001378,2]
[353033181,1739500248471,-500.0,0.0001378,2]
[353033182,1739500248480,-541.77484407,0.0001378,2]
[353033183,1739500248489,-500.0,0.0001378,2]
[353033184,1739500248498,-500.0,0.0001378,2]
[353033185,1739500248508,-500.0,0.0001378,2]
[353033186,1739500248518,-559.58224117,0.0001378,2]
[353033187,1739500248528,-500.0,0.0001378,2]
[353033188,1739500248537,-500.0,0.0001378,2]
[353033189,1739500248546,-500.0,0.0001378,2]
[353033190,1739500248555,-500.0,0.0001378,2]
[353033191,1739500248563,-503.46877847,0.0001378,2]
[353033192,1739500248573,-846.07,0.0001378,2]
[353033193,1739500248582,-521.29408137,0.0001378,2]
[353033194,1739500248591,-500.0,0.0001378,2]
[353033195,1739500248600,-536.21699997,0.0001378,2]
[353033196,1739500248609,-150.0,0.00013788,2]
[353033197,1739500248619,-2800.0,0.000138,5]
[353033198,1739500248628,-150.0,0.00013807,2]
[353033199,1739500248637,-150.0,0.00013811,2]
[353033200,1739500248645,-150.0,0.00013826,2]
[353033201,1739500248655,-150.0,0.00013841,2]
[353033202,1739500248664,-150.0,0.00013845,2]
[353033203,1739500248673,-500.0,0.00013863,2]
[353033204,1739500248682,-500.0,0.00013863,2]
[353033205,1739500248692,-500.0,0.00013863,2]
[353033206,1739500248701,-565.72297639,0.00013863,2]
[353033207,1739500248712,-500.0,0.00013863,2]
[353033208,1739500248722,-467.14797083,0.00013863,2]
[353033209,1739500248733,-538.59991686,0.00013863,2]
[353033210,1739500248743,-500.0,0.00013863,2]
[353033211,1739500248754,-500.0,0.00013863,2]
[353033212,1739500248767,-500.0,0.00013863,2]
[353033213,1739500248777,-500.0,0.00013863,2]
[353033214,1739500248788,-500.0,0.00013863,2]
[353033215,1739500248801,-500.0,0.00013863,2]
[353033216,1739500248813,-523.08218404,0.00013863,2]
[353033217,1739500248823,-500.0,0.00013863,2]
[353033218,1739500248835,-1187.28,0.00013863,2]
[353033219,1739500248845,-500.0,0.00013863,2]
[353033220,1739500248855,-500.0,0.00013863,7]
[353033221,1739500248867,-500.0,0.00013863,2]
[353033222,1739500248877,-500.0,0.00013863,2]
[353033223,1739500248889,-500.0,0.00013863,2]
[353033224,1739500248900,-500.0,0.00013863,2]
[353033225,1739500248910,-500.0,0.00013863,2]
[353033226,1739500248920,-500.0,0.00013863,2]
[353033227,1739500248930,-163.170563,0.00013863,2]
[353033228,1739500248940,-500.0,0.00013863,2]
[353033229,1739500248951,-500.0,0.00013863,2]
[353033230,1739500248962,-288.11943465,0.00013863,2]
[353033231,1739500248973,-500.0,0.00013863,2]
[353033232,1739500248983,-500.0,0.00013863,2]
[353033233,1739500248993,-500.0,0.00013863,2]
[353033234,1739500249003,-500.0,0.00013863,2]
[353033235,1739500249014,-500.0,0.00013863,2]
[353033236,1739500249024,-500.0,0.00013863,2]
[353033237,1739500249035,-560.49205752,0.00013863,2]
[353033238,1739500249046,-500.0,0.00013863,2]
[353033239,1739500249056,-500.0,0.00013863,2]
[353033240,1739500249067,-500.0,0.00013863,2]
[353033241,1739500249078,-575.23441109,0.00013863,2]
[353033242,1739500249089,-500.0,0.00013863,2]
[353033243,1739500249099,-500.0,0.00013863,2]
[353033244,1739500249113,-500.0,0.00013863,2]
[353033245,1739500249124,-500.0,0.00013863,2]
[353033246,1739500249134,-500.0,0.00013863,2]
[353033247,1739500249144,-500.0,0.00013863,2]
[353033248,1739500249155,-500.0,0.00013863,2]
[353033249,1739500249166,-598.09502955,0.00013863,2]
[353033250,1739500249177,-500.0,0.00013863,2]
[353033251,1739500249188,-409.35800005,0.00013863,2]
[353033252,1739500249199,-568.93739178,0.00013863,2]
[353033253,1739500249210,-500.0,0.00013863,2]
[353033254,1739500249220,-500.0,0.00013863,2]
[353033255,1739500249230,-471.72802989,0.00013863,2]
[353033256,1739500249240,-500.0,0.00013863,2]
[353033257,1739500249251,-500.0,0.00013863,2]
[353033258,1739500249261,-500.0,0.00013863,2]
[353033259,1739500249272,-638.2,0.00013863,2]
[353033260,1739500249283,-467.70853445,0.00013863,2]
[353033261,1739500249294,-519.84,0.00013863,2]
[353033262,1739500249305,-541.86561173,0.00013863,2]
[353033263,1739500249316,-500.0,0.00013863,2]
[353033264,1739500249327,-500.0,0.00013863,2]
[353033265,1739500249338,-500.0,0.00013863,2]
[353033266,1739500249349,-500.0,0.00013863,2]
[353033267,1739500249359,-500.0,0.00013863,2]
[353033268,1739500249371,-500.0,0.00013863,2]
[353033269,1739500249382,-500.0,0.00013863,2]
[353033270,1739500249392,-500.0,0.00013863,2]
[353033271,1739500249403,-500.0,0.00013863,2]
[353033272,1739500249414,-500.0,0.00013863,2]
[353033273,1739500249425,-500.0,0.00013863,2]
[353033274,1739500249435,-500.0,0.00013863,2]
[353033275,1739500249444,-500.0,0.00013863,2]
[353033276,1739500249455,-500.0,0.00013863,2]
[353033277,1739500249465,-500.0,0.00013863,2]
[353033278,1739500249474,-500.0,0.00013863,2]
[353033279,1739500249484,-500.0,0.00013863,2]
[353033280,1739500249494,-500.0,0.00013863,2]
[353033281,1739500249504,-500.0,0.00013863,2]
[353033282,1739500249513,-500.0,0.00013863,2]
[353033283,1739500249523,-500.0,0.00013863,2]
[353033284,1739500249533,-569.14414206,0.00013863,2]
[353033285,1739500249542,-500.0,0.00013863,2]
[353033286,1739500249551,-500.0,0.00013863,2]
[353033287,1739500249561,-500.0,0.00013863,2]
[353033288,1739500249570,-500.0,0.00013863,2]
[353033289,1739500249579,-846.07,0.00013863,2]
[353033290,1739500249588,-500.0,0.00013863,2]
[353033291,1739500249597,-150.0,0.00013864,2]
[353033292,1739500249606,-5024.50002864,0.00013867,2]
[353033293,1739500249615,-150.0,0.00013883,2]
[353033294,1739500249625,-150.0,0.00013896,2]
[353033295,1739500249634,-3500.0,0.000139,5]
[353033296,1739500249644,-158.38930764,0.000139,2]
[353033297,1739500249653,-150.0,0.00013902,2]
[353033298,1739500249662,-150.0,0.00013913,2]
[353033299,1739500249672,-408.68,0.00013919,2]
[353033300,1739500249683,-199.232077,0.00013921,2]
[353033301,1739500249693,-199.232077,0.00013921,2]
[353033302,1739500249702,-150.0,0.00013921,2]
[353033303,1739500249712,-500.0,0.00013921,2]
[353033304,1739500249722,-500.0,0.00013921,2]
[353033305,1739500249732,-500.0,0.00013921,2]
[353033306,1739500249741,-150.0,0.0001394,2]
[353033307,1739500249752,-500.0,0.00013945,2]
[353033308,1739500249762,-500.0,0.00013945,2]
[353033309,1739500249772,-500.0,0.00013945,2]
[353033310,1739500249782,-500.0,0.00013945,2]
[353033311,1739500249792,-500.0,0.00013945,2]
[353033312,1739500249805,-500.0,0.00013945,2]
[353033313,1739500249815,-500.0,0.00013945,2]
[353033314,1739500249825,-500.0,0.00013945,2]
[353033315,1739500249835,-292.21770763,0.00013945,2]
[353033316,1739500249845,-500.0,0.00013945,2]
[353033317,1739500249855,-500.0,0.00013945,2]
[353033318,1739500249864,-1187.28,0.00013945,2]
[353033319,1739500249875,-500.0,0.00013945,2]
[353033320,1739500249885,-500.0,0.00013945,7]
[353033321,1739500249895,-500.0,0.00013945,2]
[353033322,1739500249905,-500.0,0.00013945,2]
[353033323,1739500249915,-537.17661938,0.00013945,2]
[353033324,1739500249924,-500.0,0.00013945,2]
[353033325,1739500249934,-500.0,0.00013945,2]
[353033326,1739500249943,-500.0,0.00013945,2]
[353033327,1739500249952,-163.170563,0.00013945,2]
[353033328,1739500249962,-500.0,0.00013945,2]
[353033329,1739500249971,-500.0,0.00013945,2]
[353033330,1739500249982,-500.0,0.00013945,2]
[353033331,1739500249991,-500.0,0.00013945,2]
[353033332,1739500250001,-500.0,0.00013945,2]
[353033333,1739500250011,-500.0,0.00013945,2]
[353033334,1739500250020,-500.0,0.00013945,2]
[353033335,1739500250030,-500.0,0.00013945,2]
[353033336,1739500250041,-500.0,0.00013945,2]
[353033337,1739500250050,-500.0,0.00013945,2]
[353033338,1739500250060,-500.0,0.00013945,2]
[353033339,1739500250069,-200.51977743,0.00013945,2]
[353033340,1739500250079,-577.65349003,0.00013945,2]
[353033341,1739500250090,-500.0,0.00013945,2]
[353033342,1739500250100,-500.0,0.00013945,2]
[353033343,1739500250110,-500.0,0.00013945,2]
[353033344,1739500250120,-500.0,0.00013945,2]
[353033345,1739500250129,-500.0,0.00013945,2]
[353033346,1739500250139,-500.0,0.00013945,2]
[353033347,1739500250150,-500.0,0.00013945,2]
[353033348,1739500250159,-500.0,0.00013945,2]
[353033349,1739500250168,-326.09058272,0.00013945,2]
[353033350,1739500250178,-500.0,0.00013945,2]
[353033351,1739500250187,-500.0,0.00013945,2]
[353033352,1739500250196,-638.2,0.00013945,2]
[353033353,1739500250206,-519.84,0.00013945,2]
[353033354,1739500250215,-500.0,0.00013945,2]
[353033355,1739500250224,-505.79489581,0.00013945,2]
[353033356,1739500250234,-500.0,0.00013945,2]
[353033357,1739500250243,-500.0,0.00013945,2]
[353033358,1739500250252,-500.0,0.00013945,2]
[353033359,1739500250263,-500.0,0.00013945,2]
[353033360,1739500250272,-500.0,0.00013945,2]
[353033361,1739500250282,-500.0,0.00013945,2]
[353033362,1739500250291,-500.0,0.00013945,2]
[353033363,1739500250302,-500.0,0.00013945,2]
[353033364,1739500250311,-500.0,0.00013945,2]
[353033365,1739500250321,-500.0,0.00013945,2]
[353033366,1739500250331,-500.0,0.00013945,2]
[353033367,1739500250341,-606.32840679,0.00013945,2]
[353033368,1739500250350,-500.0,0.00013945,2]
[353033369,1739500250361,-500.0,0.00013945,2]
[353033370,1739500250371,-500.0,0.00013945,2]
[353033371,1739500250383,-500.0,0.00013945,2]
[353033372,1739500250392,-369.04251065,0.00013945,2]
[353033373,1739500250402,-500.0,0.00013945,2]
[353033374,1739500250412,-500.0,0.00013945,2]
[353033375,1739500250422,-500.0,0.00013945,2]
[353033376,1739500250432,-500.0,0.00013945,2]
[353033377,1739500250442,-500.0,0.00013945,2]
[353033378,1739500250451,-500.0,0.00013945,2]
[353033379,1739500250461,-846.07,0.00013945,2]
[353033380,1739500250470,-500.0,0.00013945,2]
[353033381,1739500250480,-150.0,0.0001395,2]
[353033382,1739500250490,-150.0,0.00013959,2]
[353033383,1739500250499,-150.0,0.00013978,2]
[353033384,1739500250508,-150.0,0.00013982,2]
[353033385,1739500250518,-150.0,0.00013986,2]
[353033386,1739500250527,-1000.0,0.00013991,2]
[353033387,1739500250537,-169.71,0.00013991,2]
[353033388,1739500250547,-150.0,0.00013997,2]
[353033389,1739500250556,-22222.02,0.00014,2]
[353033390,1739500250565,-150.0,0.00014016,2]
[353033391,1739500250575,-151.235028,0.00014027,2]
[353033392,1739500250584,-500.0,0.00014027,2]
[353033393,1739500250594,-500.0,0.00014027,2]
[353033394,1739500250604,-500.0,0.00014027,2]
[353033395,1739500250614,-500.0,0.00014027,2]
[353033396,1739500250624,-500.0,0.00014027,2]
[353033397,1739500250634,-500.0,0.00014027,2]